bitfinex/quotes_ETHUSD_20250415
["timestamp","ask_amount","ask_price","bid_price","bid_amount"]
[1744755327985,4.18165325,1595.7,1595.6,7.88337667]
[1744755328577,5.608,1595.8,1595.7,6.26684213]
[1744755330814,48.89,1596.1,1596.0,6.26566416]
[1744755330985,5.608,1596.2,1596.1,6.26527159]
[1744755332609,5.608,1596.2,1596.1,7.21477159]
[1744755335210,5.608,1596.2,1596.0,15.22846267]
[1744755335397,5.608,1596.2,1596.0,15.22846656]
[1744755335594,5.608,1596.2,1596.0,12.53102003]
[1744755335926,5.608,1596.2,1596.1,6.26527159]
[1744755336522,5.608,1596.2,1596.0,6.26547231]
[1744755336827,13.47459109,1596.1,1595.8,6.2662298]
[1744755337011,0.9437,1596.1,1595.5,9.92471047]
[1744755337212,6.26656011,1595.8,1595.5,9.92471047]
[1744755337415,5.606,1595.7,1595.5,9.92471047]
[1744755337614,5.606,1595.7,1595.5,16.19221872]
[1744755337809,5.606,1595.7,1595.6,6.26723489]
[1744755338628,5.606,1595.7,1595.5,16.19221872]
[1744755338847,5.606,1595.7,1595.6,6.26723489]
[1744755344563,5.606,1595.7,1595.6,6.32990084]
[1744755344862,5.606,1595.7,1595.6,6.26723489]
[1744755345969,5.606,1595.7,1595.6,6.21801257]
[1744755347326,5.606,1595.7,1595.6,8.45902424]
[1744755349074,5.606,1595.7,1595.6,6.21801257]
[1744755352060,5.606,1595.7,1595.5,9.92467484]
[1744755353672,5.606,1595.7,1595.6,6.26723489]
[1744755355047,5.606,1595.7,1595.5,15.23238501]
[1744755357476,6.5783,1595.7,1595.5,8.96487484]
[1744755358361,6.5783,1595.7,1595.5,15.23240063]
[1744755358566,6.5783,1595.7,1595.5,8.96487484]
[1744755358784,6.5783,1595.7,1595.5,15.23238874]
[1744755359090,6.26725536,1595.6,1595.3,16.20331657]
[1744755359259,6.26725536,1595.6,1595.3,16.20332125]
[1744755359462,6.26725536,1595.6,1595.3,9.93500518]
[1744755359644,6.26725536,1595.6,1595.3,16.2033081]
[1744755359979,12.53462884,1595.6,1595.3,9.93500518]
[1744755360279,12.53462884,1595.6,1595.3,8.96570518]
[1744755361456,6.26880641,1595.2,1595.1,0.02]
[1744755362145,18.14320389,1595.3,1595.1,0.02]
[1744755362766,6.26880641,1595.2,1595.1,0.02]
[1744755364376,7.81980641,1595.2,1595.1,0.02]
[1744755364578,13.91980641,1595.2,1595.1,0.02]
[1744755366538,9.26959247,1595.0,1594.9,0.39843681]
[1744755366869,10.21009247,1595.0,1594.9,0.39843681]
[1744755370357,7.76009247,1595.0,1594.9,0.39843681]
[1744755370879,13.86009247,1595.0,1594.9,0.39843681]
[1744755371784,19.557539,1595.0,1594.9,1e-08]
[1744755373175,19.557539,1595.0,1594.1,6.29296856]
[1744755373176,13.48216272,1594.4,1594.1,6.29296856]
[1744755373383,5.608,1594.3,1594.1,6.29296856]
[1744755374154,6.27273867,1594.2,1594.1,0.02]
[1744755374350,5.608,1594.3,1594.1,0.02]
[1744755374580,5.608,1594.3,1594.2,7.28083867]
[1744755374769,5.608,1594.3,1594.2,8.6382221]
[1744755375449,5.608,1594.3,1594.2,11.3983916]
[1744755375646,7.29140774,1594.9,1594.5,1.0081]
[1744755375957,5.609,1594.8,1594.5,1.0081]
[1744755376157,6.27121917,1594.6,1594.3,13.55259948]
[1744755376362,6.27121917,1594.6,1594.3,15.31334242]
[1744755376546,6.27121917,1594.6,1594.3,9.04103468]
[1744755377070,6.27121917,1594.6,1594.3,7.28029174]
[1744755377260,6.27159925,1594.5,1594.3,1.0081]
[1744755377453,11.88101311,1594.4,1594.1,7.31099137]
[1744755377683,6.27243478,1594.3,1594.1,0.02]
[1744755378267,12.54495413,1594.3,1594.1,0.02]
[1744755378684,6.27243478,1594.3,1594.1,0.02]
[1744755379112,11.88105636,1594.4,1594.1,6.2928889]
[1744755379318,11.88105636,1594.4,1594.1,12.56589031]
[1744755379518,11.88105636,1594.4,1594.1,6.2928889]
[1744755380043,11.88105636,1594.4,1594.1,12.56590006]
[1744755380605,11.88105636,1594.4,1594.1,6.2928889]
[1744755380806,11.88105636,1594.4,1594.1,12.56589264]
[1744755381435,11.88105636,1594.4,1594.1,6.2928889]
[1744755382041,5.609,1594.4,1594.3,6.27234522]
[1744755382188,5.609,1594.4,1594.3,7.28984522]
[1744755382610,12.37082279,1594.7,1594.4,6.27167286]
[1744755382813,5.609,1594.6,1594.4,6.27167286]
[1744755383228,5.61,1594.5,1594.4,6.27167286]
[1744755383639,5.61,1594.5,1594.4,8.96911939]
[1744755383844,5.61,1594.5,1594.4,11.22221827]
[1744755384332,5.61,1594.8,1594.6,0.9738]
[1744755384500,5.61,1594.8,1594.7,6.27066722]
[1744755385100,5.61,1594.8,1594.6,13.51595894]
[1744755385430,5.61,1594.8,1594.6,7.24487947]
[1744755385737,5.61,1594.8,1594.7,6.27077193]
[1744755385921,5.61,1594.8,1594.6,7.24486456]
[1744755386093,5.61,1594.8,1594.6,0.9738]
[1744755386291,5.61,1594.8,1594.4,2.69744653]
[1744755386292,18.15114696,1594.8,1594.4,16.18457431]
[1744755386506,18.15114696,1594.8,1594.5,6.27153639]
[1744755387336,5.61,1594.8,1594.6,6.27086528]
[1744755387519,5.61,1594.8,1594.7,6.27077193]
[1744755387722,5.61,1594.8,1594.6,12.54184817]
[1744755388293,5.61,1594.8,1594.6,6.27086528]
[1744755388815,5.61,1594.8,1594.6,12.54188268]
[1744755389018,5.61,1594.8,1594.6,6.27086528]
[1744755389801,6.27158012,1594.5,1594.2,13.49431471]
[1744755390139,5.609,1594.4,1594.2,13.49431471]
[1744755390309,5.609,1594.4,1594.3,6.27234522]
[1744755391629,5.609,1594.4,1594.3,11.27779017]
[1744755391825,5.609,1594.4,1594.3,11.34050604]
[1744755392201,6.1,1594.6,1594.5,7.20785848]
[1744755394310,5.609,1594.7,1594.6,6.27116518]
[1744755401546,5.609,1594.7,1594.5,7.20765707]
[1744755401752,5.609,1594.7,1594.5,6.27135707]
[1744755402736,5.609,1594.7,1594.5,12.54279095]
[1744755403232,5.609,1594.7,1594.5,6.27135707]
[1744755403411,6.27117005,1594.6,1594.4,6.27193922]
[1744755403614,11.88009049,1594.7,1594.4,12.54387844]
[1744755404051,18.15100957,1594.7,1594.4,6.27193922]
[1744755404552,18.15101335,1594.7,1594.4,6.27193922]
[1744755405055,11.87991908,1594.7,1594.4,12.54387844]
[1744755405256,18.15083918,1594.7,1594.4,6.27193922]
[1744755406160,17.97991908,1594.7,1594.4,12.54377917]
[1744755406962,11.709,1594.7,1594.6,6.27116518]
[1744755407256,11.708,1594.7,1594.6,7.26536518]
[1744755408359,11.708,1594.7,1594.5,12.54281682]
[1744755408852,18.99577866,1594.7,1594.4,6.27193996]
[1744755409157,18.99577866,1594.7,1594.4,6.27182342]
[1744755409654,18.99577866,1594.7,1594.5,6.27153666]
[1744755409655,12.725,1594.7,1594.5,6.27153666]
[1744755411153,0.55,1594.6,1594.1,1.0398]
[1744755411360,6.82128285,1594.6,1594.1,1.0398]
[1744755411559,13.09260414,1594.6,1594.3,6.27210452]
[1744755411763,6.82128285,1594.6,1594.3,12.54434941]
[1744755411944,6.82128285,1594.6,1594.3,6.27210452]
[1744755412342,12.725,1594.7,1594.5,6.27151482]
[1744755412545,12.725,1594.7,1594.4,7.28394802]
[1744755412546,18.99589235,1594.7,1594.4,7.28394802]
[1744755412714,18.99589235,1594.7,1594.4,1.012]
[1744755413051,25.26702653,1594.7,1594.4,6.27191623]
[1744755413258,11.708,1594.7,1594.5,7.22583273]
[1744755413558,11.87886915,1594.7,1594.4,6.27182856]
[1744755413742,18.14983521,1594.7,1594.4,6.27182856]
[1744755413956,11.87886915,1594.7,1594.4,12.5436547]
[1744755414129,11.87886915,1594.7,1594.4,6.27182614]
[1744755414659,11.87886915,1594.7,1594.4,12.54365022]
[1744755415964,5.608,1594.7,1594.5,6.27152926]
[1744755416257,11.87878217,1594.7,1594.4,13.54865022]
[1744755417363,5.608,1594.7,1594.5,6.27154643]
[1744755417559,11.87878298,1594.7,1594.4,12.54365022]
[1744755417759,18.14978152,1594.7,1594.4,6.27182511]
[1744755417937,11.87878298,1594.7,1594.4,12.54365022]
[1744755418135,5.608,1594.7,1594.6,6.27116518]
[1744755419339,5.608,1594.7,1594.5,13.54776745]
[1744755419536,5.608,1594.7,1594.5,7.27635902]
[1744755419937,5.608,1594.7,1594.5,13.54780668]
[1744755420132,5.608,1594.7,1594.6,6.27116518]
[1744755421330,5.608,1594.7,1594.6,8.5227981]
[1744755421769,5.608,1594.8,1594.7,6.27067255]
[1744755422074,5.608,1594.8,1594.7,9.94211908]
[1744755422441,5.608,1595.1,1595.0,6.26941517]
[1744755423450,4.18887264,1595.4,1595.2,6.2685167]
[1744755423656,5.608,1595.3,1595.2,6.2685167]
[1744755423842,4.18887264,1595.4,1595.3,6.26841346]
[1744755424043,4.18887264,1595.4,1595.2,17.41336558]
[1744755424281,4.18887264,1595.4,1595.2,6.2685167]
[1744755424650,4.18887264,1595.4,1595.0,6.26949559]
[1744755424651,6.26843107,1595.3,1595.0,6.26949559]
[1744755424855,5.608,1595.2,1595.0,6.26946478]
[1744755425358,5.608,1595.2,1594.9,6.26987728]
[1744755425560,12.82073914,1595.2,1594.9,6.26987728]
[1744755426160,12.82073914,1595.2,1594.9,6.26986575]
[1744755426384,19.0897318,1595.2,1594.9,6.26986575]
[1744755426675,12.82073914,1595.2,1594.9,6.26986575]
[1744755427084,0.55,1595.1,1594.7,6.27067252]
[1744755427354,0.9467,1594.9,1594.6,13.55946728]
[1744755427575,5.606,1594.8,1594.6,12.54216728]
[1744755428893,5.606,1594.8,1594.7,9.99352273]
[1744755429108,5.606,1594.8,1594.7,9.93081846]
[1744755429271,11.706,1595.1,1595.0,6.26959247]
[1744755429469,5.606,1595.1,1595.0,7.23219247]
[1744755430174,5.606,1595.1,1595.0,6.26959247]
[1744755430366,5.606,1595.1,1594.9,6.26979385]
[1744755430579,5.606,1595.1,1594.8,13.50320932]
[1744755430780,5.606,1595.1,1594.9,6.26986332]
[1744755430962,5.606,1595.1,1595.0,6.26959247]
[1744755432383,5.606,1595.1,1595.0,7.23219247]
[1744755432725,5.606,1595.3,1595.2,6.26856593]
[1744755433828,11.87465269,1595.3,1595.0,6.26940345]
[1744755433991,1.0205,1595.2,1595.0,6.26940345]
[1744755434216,6.6265,1595.3,1594.9,2.69744653]
[1744755434539,5.606,1595.3,1595.1,13.50661769]
[1744755435138,5.606,1595.3,1595.2,6.26880641]
[1744755435638,48.906,1595.6,1595.5,6.2676277]
[1744755436044,5.605,1595.7,1595.6,6.26723489]
[1744755436334,9.79387264,1596.0,1595.9,6.26605677]
[1744755436534,9.79387264,1596.0,1595.8,6.26626224]
[1744755437138,9.79387264,1596.0,1595.9,6.26605677]
[1744755437645,16.05962206,1596.0,1595.6,3.66884653]
[1744755437932,10.78157264,1596.0,1595.7,6.26672827]
[1744755438140,10.78157264,1596.0,1595.8,12.53274776]
[1744755438434,10.78157264,1596.0,1595.8,6.26629874]
[1744755438936,9.79387264,1596.0,1595.8,6.26629269]
[1744755439347,5.605,1596.0,1595.9,6.26605677]
[1744755440002,54.498,1596.3,1596.2,6.26487908]
[1744755440424,54.498,1596.3,1596.2,9.91072561]
[1744755441734,5.604,1596.6,1596.5,6.26370184]
[1744755441936,5.16307264,1596.9,1596.7,12.5255516]
[1744755442260,5.16307264,1596.9,1596.7,6.26263434]
[1744755442865,0.9742,1596.9,1596.7,6.26263434]
[1744755443065,0.9742,1596.9,1596.7,12.52542376]
[1744755443365,11.704,1597.0,1596.7,12.52542376]
[1744755443666,11.865745,1597.0,1596.7,6.26263434]
[1744755443965,5.604,1597.0,1596.8,6.26249712]
[1744755444170,18.12798175,1597.0,1596.6,13.47477851]
[1744755444373,11.86593525,1597.0,1596.6,15.01017058]
[1744755444674,5.604,1597.0,1596.6,1.53539207]
[1744755444874,0.9642,1596.6,1596.3,6.26423882]
[1744755445180,5.603,1596.5,1596.3,12.52856845]
[1744755445335,5.603,1596.5,1596.4,6.26409421]
[1744755445732,5.603,1596.5,1596.2,0.9493]
[1744755445977,5.603,1596.5,1596.3,6.26437828]
[1744755446847,5.603,1596.5,1596.3,12.52874837]
[1744755447350,5.603,1596.5,1596.4,6.26409421]
[1744755447541,6.1,1596.7,1596.5,6.26346674]
[1744755447739,5.602,1596.6,1596.5,6.26346674]
[1744755447934,5.602,1596.6,1596.4,12.52796353]
[1744755448131,5.602,1596.6,1596.5,6.26370184]
[1744755448941,5.602,1596.6,1596.4,6.26396639]
[1744755449152,5.602,1596.6,1596.5,6.26370184]
[1744755449759,5.602,1596.6,1596.4,6.26396639]
[1744755450172,5.602,1596.6,1596.4,12.52794793]
[1744755450685,5.602,1596.6,1596.4,6.26396639]
[1744755451999,5.602,1596.6,1596.4,12.52794327]
[1744755452366,5.602,1596.6,1596.5,6.26370184]
[1744755452571,7.0504,1597.0,1596.6,6.26330953]
[1744755452759,5.601,1597.0,1596.9,7.21963288]
[1744755452957,5.601,1597.0,1596.9,7.28224871]
[1744755453156,5.601,1597.0,1596.9,10.21963288]
[1744755453459,5.601,1597.0,1596.9,12.4940622]
[1744755454225,5.601,1597.0,1596.9,15.67372954]
[1744755454924,5.601,1597.0,1596.9,8.5365622]
[1744755456422,5.601,1597.0,1596.9,8.59917632]
[1744755456819,5.601,1597.0,1596.9,8.5365622]
[1744755458724,5.601,1597.0,1596.9,9.5111622]
[1744755459493,5.601,1597.0,1596.9,8.5365622]
[1744755459726,5.7200084,1597.0,1596.9,6.26213288]
[1744755460447,5.7200084,1597.0,1596.9,6.32474706]
[1744755460902,5.7200084,1597.0,1596.9,9.26213288]
[1744755461496,5.7200084,1597.0,1596.9,6.26213288]
[1744755461901,5.7200084,1597.0,1596.8,13.49932089]
[1744755462423,11.98198116,1597.0,1596.7,6.26291345]
[1744755462628,18.2439209,1597.0,1596.7,6.26291345]
[1744755463135,5.7200084,1597.0,1596.8,6.26241142]
[1744755463343,5.7200084,1597.0,1596.8,6.2624085]
[1744755463523,5.7200084,1597.0,1596.9,6.26213288]
[1744755464037,5.7200084,1597.0,1596.8,6.88863972]
[1744755464265,5.7200084,1597.0,1596.8,6.26239858]
[1744755464555,5.7200084,1597.0,1596.8,12.52481387]
[1744755464722,5.7200084,1597.0,1596.8,12.5248131]
[1744755465961,5.7200084,1597.0,1596.9,6.26213288]
[1744755468559,5.7200084,1597.0,1596.8,8.95337842]
[1744755468761,5.7200084,1597.0,1596.8,15.21577162]
[1744755469382,5.7200084,1597.0,1596.9,6.26213288]
[1744755470382,5.7200084,1597.0,1596.9,7.78368401]
[1744755471179,5.7200084,1597.0,1596.9,6.26213288]
[1744755476993,6.6875084,1597.0,1596.6,2.69105004]
[1744755477291,7.23082148,1596.6,1596.3,12.52874582]
[1744755477490,5.598,1596.5,1596.4,6.26409421]
[1744755479516,5.598,1596.5,1596.4,8.1433696]
[1744755480823,5.598,1596.5,1596.4,10.83441964]
[1744755482886,6.5875,1596.5,1596.1,6.2651289]
[1744755483087,6.5875,1596.5,1595.8,7.19572709]
[1744755483088,6.26499176,1596.2,1595.8,7.19572709]
[1744755483317,5.598,1596.1,1595.8,12.53264691]
[1744755483517,7.2262788,1596.0,1595.7,6.26677911]
[1744755483687,13.49212911,1596.0,1595.7,6.26677911]
[1744755484227,13.49212911,1596.0,1595.5,6.26757409]
[1744755484228,6.26661383,1595.8,1595.5,6.26757409]
[1744755484451,5.598,1595.7,1595.5,6.26757409]
[1744755485007,0.9591,1595.6,1595.4,12.5357932]
[1744755485209,0.9591,1595.6,1595.5,6.2676277]
[1744755486156,5.598,1595.7,1595.6,6.26723489]
[1744755489105,6.1,1596.1,1595.9,6.26605677]
[1744755489443,5.599,1596.0,1595.9,6.26599892]
[1744755491740,5.599,1596.0,1595.9,6.32865435]
[1744755491946,0.9466,1596.6,1596.1,7.21017159]
[1744755492248,5.599,1596.5,1596.4,6.26409421]
[1744755492405,0.9466,1596.8,1596.5,12.5266585]
[1744755492406,5.599,1596.6,1596.5,12.5266585]
[1744755493641,5.599,1596.6,1596.5,6.26332925]
[1744755493847,5.599,1596.6,1596.4,6.26394676]
[1744755494152,5.599,1596.6,1596.4,12.52792005]
[1744755494553,5.599,1596.6,1596.5,6.26370184]
[1744755495851,7.25472071,1596.5,1596.2,6.26473557]
[1744755496159,6.26420673,1596.4,1596.1,6.26516409]
[1744755497954,6.26420673,1596.4,1596.1,12.53032101]
[1744755498315,6.26420673,1596.4,1596.1,6.26515692]
[1744755498521,0.9763,1596.3,1595.8,6.26633357]
[1744755498720,0.9763,1596.0,1595.8,6.26633357]
[1744755499756,0.9763,1596.0,1595.8,12.53266817]
[1744755500458,0.9763,1596.0,1595.9,6.26605677]
[1744755501058,0.9763,1596.0,1595.8,6.26633357]
[1744755501879,0.9763,1596.0,1595.8,12.53265656]
[1744755503029,0.9763,1596.0,1595.8,6.26632299]
[1744755505164,7.24199247,1596.0,1595.7,12.53351]
[1744755506342,0.9763,1596.0,1595.7,12.53351]
[1744755506540,0.9763,1596.0,1595.8,6.26644342]
[1744755506743,11.86393445,1596.2,1595.9,6.26572865]
[1744755506744,6.5877,1596.2,1595.9,6.26572865]
[1744755507059,12.85262157,1596.2,1595.9,12.53168168]
[1744755507267,12.85262157,1596.2,1595.9,6.26572865]
[1744755507268,19.11773144,1596.2,1595.9,6.26572865]
[1744755508562,6.26532976,1596.1,1595.8,6.26633671]
[1744755508768,12.53088467,1596.1,1595.7,6.26676469]
[1744755508967,6.26587371,1596.0,1595.7,6.26676469]
[1744755509262,7.2823321,1595.9,1595.5,7.26690438]
[1744755509475,5.6,1595.8,1595.6,6.26722879]
[1744755509771,5.6,1595.8,1595.5,12.53500876]
[1744755509973,6.26724945,1595.6,1595.3,6.26829792]
[1744755510175,6.26724945,1595.6,1595.3,6.26828868]
[1744755510176,7.28334945,1595.6,1595.3,6.26828868]
[1744755510873,6.26807399,1595.4,1595.1,6.26907818]
[1744755511076,5.6,1595.3,1595.1,6.2690729]
[1744755511277,6.6161,1595.3,1595.1,6.2690729]
[1744755511782,6.6161,1595.3,1595.1,12.53816354]
[1744755513184,5.6,1595.3,1595.2,6.26880641]
[1744755513356,5.6,1595.3,1595.1,6.26901259]
[1744755515578,5.6,1595.3,1595.1,12.53807804]
[1744755515750,5.6,1595.3,1595.1,6.26901259]
[1744755516378,5.6,1595.3,1595.0,6.26951672]
[1744755516975,11.86851805,1595.3,1594.9,13.99964749]
[1744755517179,11.86851805,1595.3,1594.9,15.71813266]
[1744755517375,11.86851805,1595.3,1594.9,15.71805471]
[1744755517692,11.86851805,1595.3,1594.9,15.71795155]
[1744755517876,11.86851805,1595.3,1595.0,6.26958637]
[1744755518079,6.26893698,1595.2,1594.9,7.25074388]
[1744755518689,0.9824,1595.2,1594.7,1.0147]
[1744755518894,0.9824,1595.2,1594.3,0.97455321]
[1744755518895,6.27052358,1594.8,1594.5,0.9384]
[1744755519199,5.6,1594.7,1594.5,0.9384]
[1744755519891,5.6,1594.7,1594.4,12.54368157]
[1744755520497,5.6,1594.7,1594.3,0.9387]
[1744755520700,6.27174179,1594.5,1594.2,6.27261647]
[1744755521066,6.27174179,1594.5,1594.1,0.02]
[1744755521067,0.55,1594.5,1594.1,0.02]
[1744755521293,6.27256809,1594.3,1594.1,0.02]
[1744755521597,5.6,1594.2,1594.1,0.02]
[1744755523465,7.2968059,1594.6,1594.1,0.02]
[1744755523466,1.0256,1594.6,1594.1,1.27667381]
[1744755523661,5.6,1594.5,1594.2,12.54500298]
[1744755523867,1.0256,1594.6,1594.3,6.27234522]
[1744755524062,5.601,1594.6,1594.5,6.27136912]
[1744755524314,5.601,1594.6,1594.4,12.54354417]
[1744755524534,5.601,1594.6,1594.5,6.27155848]
[1744755527391,5.601,1594.6,1594.4,6.27175949]
[1744755527587,6.5722,1594.6,1594.3,12.54440744]
[1744755527791,6.5722,1594.6,1594.4,6.27193318]
[1744755528711,12.8433684,1594.6,1594.3,6.27217582]
[1744755529730,6.27166891,1594.5,1594.2,6.27266048]
[1744755529936,6.27166891,1594.5,1594.2,12.54529674]
[1744755530536,6.27166891,1594.5,1594.2,6.27263626]
[1744755530837,6.27166891,1594.5,1594.2,6.27262112]
[1744755531037,6.27166891,1594.5,1594.1,12.56606128]
[1744755531237,6.27195312,1594.4,1594.1,12.56605157]
[1744755531532,6.27195312,1594.4,1594.1,6.29302093]
[1744755531756,6.27182815,1594.5,1594.2,6.27262787]
[1744755531904,6.27182815,1594.5,1594.2,12.54523871]
[1744755532236,7.0712,1594.6,1594.2,2.20302387]
[1744755532402,5.602,1594.5,1594.4,6.27161441]
[1744755532730,5.602,1594.5,1594.3,6.27214959]
[1744755532923,5.602,1594.5,1594.3,6.27220933]
[1744755533121,7.28558089,1594.4,1594.1,6.29295656]
[1744755533634,13.55773574,1594.4,1594.1,6.29295656]
[1744755534312,6.27235922,1594.3,1594.1,0.02]
[1744755534512,13.55789596,1594.4,1594.1,0.02]
[1744755534713,13.55789596,1594.4,1594.1,6.29303687]
[1744755534910,11.02154285,1594.2,1594.1,0.02]
[1744755535223,7.28624948,1593.6,1593.3,6.67460745]
[1744755535429,11.87877383,1593.5,1593.3,0.3984368]
[1744755535737,11.87866041,1593.5,1593.3,0.3984368]
[1744755536719,5.603,1593.5,1593.3,0.3984368]
[1744755537022,5.604,1593.6,1593.5,6.27511258]
[1744755537224,5.604,1593.6,1593.3,7.96985968]
[1744755537415,5.604,1593.6,1593.3,14.24601816]
[1744755537617,5.604,1593.6,1593.3,6.6745938]
[1744755537817,5.604,1593.6,1593.4,6.27559782]
[1744755539108,5.604,1593.6,1593.4,12.55132789]
[1744755539308,5.604,1593.6,1593.5,6.27549419]
[1744755540460,48.906,1593.9,1593.8,6.27431296]
[1744755541641,48.906,1593.9,1593.6,6.27500312]
[1744755541838,48.906,1593.9,1593.8,6.27431296]
[1744755542810,5.605,1594.0,1593.8,14.43097845]
[1744755543171,5.605,1594.0,1593.9,7.29081931]
[1744755543448,5.605,1594.3,1594.2,6.27260264]
[1744755544356,5.605,1594.3,1594.1,6.27294136]
[1744755544981,5.605,1594.3,1594.2,6.27273867]
[1744755545785,5.605,1594.3,1594.1,12.5459486]
[1744755545938,5.605,1594.3,1593.9,7.29064727]
[1744755546139,18.15038126,1594.3,1593.9,13.56445285]
[1744755546681,18.15038126,1594.3,1593.8,6.27419546]
[1744755546682,0.9496,1594.2,1593.8,6.27419546]
[1744755546888,6.27355592,1594.0,1593.7,6.27460145]
[1744755547040,0.9496,1593.8,1593.5,6.27539918]
[1744755547368,6.27520377,1593.6,1593.3,6.67461287]
[1744755547555,5.605,1593.5,1593.3,6.67461287]
[1744755547760,5.605,1593.5,1593.3,0.3984368]
[1744755547972,11.88052082,1593.5,1593.3,0.3984368]
[1744755548871,18.15625124,1593.5,1593.3,0.3984368]
[1744755549073,5.605,1593.5,1593.3,0.3984368]
[1744755549274,5.605,1593.5,1593.3,6.67459399]
[1744755550151,5.605,1593.5,1593.3,6.67456499]
[1744755550546,5.605,1593.5,1593.3,7.34202149]
[1744755550750,5.605,1593.5,1593.4,6.27588803]
[1744755552171,5.605,1593.5,1593.3,6.67452845]
[1744755552473,5.605,1593.5,1593.3,0.3984368]
[1744755552640,11.88060892,1593.5,1593.3,0.3984368]
[1744755552841,5.605,1593.5,1593.3,6.67462938]
[1744755553076,5.605,1593.5,1593.3,12.95076427]
[1744755553374,5.605,1593.5,1593.4,6.27588803]
[1744755553880,6.1,1593.7,1593.6,6.2751004]
[1744755554672,6.1,1593.7,1593.5,12.55063558]
[1744755554976,6.1,1593.7,1593.4,12.55157863]
[1744755555285,6.1,1593.7,1593.5,6.27545511]
[1744755555602,6.1,1593.7,1593.6,6.2751004]
[1744755557499,6.27318081,1594.1,1594.0,6.27352572]
[1744755557500,5.7,1594.1,1594.0,6.27352572]
[1744755558481,5.7,1594.1,1593.9,13.4852919]
[1744755558680,5.7,1594.1,1593.9,6.27372752]
[1744755558875,5.7,1594.1,1593.8,12.54844516]
[1744755559371,5.7,1594.1,1594.0,6.27352572]
[1744755559604,0.9923,1594.4,1594.2,6.2724496]
[1744755559792,11.97246667,1594.3,1594.0,7.24225203]
[1744755559990,11.97246667,1594.3,1594.0,6.27335203]
[1744755560185,5.7,1594.3,1594.0,6.27335203]
[1744755560387,5.7,1594.3,1594.1,6.27301355]
[1744755560700,5.7,1594.3,1594.0,12.54675827]
[1744755561478,5.7,1594.3,1593.8,7.24296857]
[1744755561803,6.27325825,1594.1,1593.8,6.27411486]
[1744755561975,7.21435044,1594.1,1593.7,12.54920503]
[1744755562176,6.27376131,1594.0,1593.7,6.27458714]
[1744755562379,5.699,1593.9,1593.7,6.27458714]
[1744755562815,11.97309763,1593.9,1593.5,12.55075904]
[1744755562975,1.0175,1593.8,1593.4,0.9733]
[1744755563309,7.29196384,1593.8,1593.5,6.27536787]
[1744755563613,7.29196384,1593.8,1593.3,0.3984368]
[1744755563614,6.2753751,1593.6,1593.3,6.67471226]
[1744755563819,5.699,1593.5,1593.3,6.67471226]
[1744755564422,5.699,1593.5,1593.3,0.3984368]
[1744755564891,11.97452974,1593.5,1593.3,0.3984368]
[1744755565093,19.23136505,1593.5,1593.3,0.3984368]
[1744755565411,12.95552974,1593.5,1593.3,0.3984368]
[1744755565616,19.23120182,1593.5,1593.3,0.3984368]
[1744755565818,19.23126144,1593.5,1593.3,0.3984368]
[1744755566016,12.95552974,1593.5,1593.3,0.3984368]
[1744755566423,6.68,1593.5,1593.3,0.3984368]
[1744755566785,5.699,1593.5,1593.4,6.27588803]
[1744755572190,54.629,1593.8,1593.7,6.27470665]
[1744755572391,5.699,1594.0,1593.9,6.27355795]
[1744755572596,5.699,1594.0,1593.9,12.5471159]
[1744755574114,1.011,1594.3,1594.0,6.27335483]
[1744755574302,11.799,1594.4,1594.2,6.27273867]
[1744755574506,11.799,1594.4,1593.9,6.27387724]
[1744755574507,6.27245982,1594.3,1594.0,6.27351534]
[1744755574713,24.34320839,1594.4,1594.1,6.27313194]
[1744755575023,6.27234965,1594.3,1594.0,12.54703068]
[1744755575329,6.27234965,1594.3,1594.0,12.54692824]
[1744755576593,18.07098254,1594.4,1594.1,6.27307752]
[1744755576922,11.799,1594.4,1594.3,6.27234522]
[1744755577125,5.699,1594.4,1594.3,6.27234522]
[1744755578028,5.699,1594.4,1594.3,7.28274522]
[1744755578523,5.699,1594.4,1593.9,6.27388859]
[1744755578524,6.27236105,1594.3,1593.9,6.27379582]
[1744755578834,25.35792698,1594.4,1594.0,12.54671968]
[1744755579039,6.27236714,1594.3,1594.0,6.27335984]
[1744755579197,12.54507313,1594.3,1593.9,6.27380987]
[1744755579397,12.54582075,1594.2,1593.8,15.5483801]
[1744755579621,6.27278891,1594.2,1593.9,6.27391155]
[1744755579852,6.27278891,1594.2,1593.9,12.54771701]
[1744755580126,6.27243146,1594.3,1594.0,6.27348245]
[1744755580518,19.08587635,1594.4,1594.1,6.27283797]
[1744755580519,12.8138,1594.4,1594.1,6.27283797]
[1744755580713,11.799,1594.4,1594.3,6.27234522]
[1744755580919,5.699,1594.4,1594.3,6.27234522]
[1744755581120,5.699,1594.4,1594.2,7.25002834]
[1744755581419,11.97095551,1594.4,1594.1,6.27300954]
[1744755581626,18.24315496,1594.4,1594.1,6.27300954]
[1744755581960,6.27238398,1594.3,1594.0,13.52438788]
[1744755582528,11.97095551,1594.4,1594.1,6.27296597]
[1744755583021,11.97095551,1594.4,1594.1,12.54598395]
[1744755583562,5.699,1594.4,1594.2,6.27272567]
[1744755584065,5.699,1594.4,1594.3,6.27234522]
[1744755584265,5.699,1594.4,1594.2,6.27257196]
[1744755584560,5.699,1594.4,1594.1,12.54603295]
[1744755584762,5.699,1594.4,1594.2,12.5452966]
[1744755585064,5.699,1594.4,1594.3,6.27234522]
[1744755585847,5.699,1594.4,1594.2,6.27262788]
[1744755586322,12.96806656,1594.4,1594.1,12.5460267]
[1744755587063,19.24016626,1594.4,1594.1,6.27301335]
[1744755587227,12.96806656,1594.4,1594.1,12.5460267]
[1744755587428,12.96806656,1594.4,1594.0,7.2510097]
[1744755587663,6.2724173,1594.3,1594.0,13.5245194]
[1744755588059,19.24027512,1594.4,1594.1,6.27312438]
[1744755588288,12.96806656,1594.4,1594.1,6.27312438]
[1744755588437,12.96806656,1594.4,1594.1,6.2730066]
[1744755588962,19.24027083,1594.4,1594.1,6.2730066]
[1744755589588,6.27235683,1594.3,1594.0,7.25098429]
[1744755589778,6.27235683,1594.3,1594.0,6.27340302]
[1744755590183,6.27235683,1594.3,1594.0,12.54681773]
[1744755591074,6.27235683,1594.3,1594.0,6.27340302]